bitfinex/quotes_ETHUSD_20250223
["timestamp","ask_amount","ask_price","bid_price","bid_amount"]
[1740269588609,0.8242,2759.1,2758.9,7.402]
[1740269588912,5.24,2759.4,2759.0,0.1555]
[1740269589083,8.86397,2759.4,2759.0,0.1555]
[1740269589489,5.24,2759.4,2759.0,0.1555]
[1740269590209,5.24,2759.4,2759.1,7.24856]
[1740269590416,5.24,2759.4,2759.1,3.62428]
[1740269590599,5.24,2759.4,2759.2,3.62422]
[1740269590802,5.24,2759.4,2759.2,3.62423]
[1740269591310,5.24,2759.4,2759.0,0.1555]
[1740269591514,5.24,2759.4,2759.1,3.6243]
[1740269591711,5.24,2759.4,2759.1,7.24858]
[1740269592215,3.62359,2759.7,2759.1,7.24858]
[1740269592379,3.62359,2759.7,2759.2,3.62422]
[1740269592584,9.68767,2759.8,2759.2,3.62416]
[1740269593398,3.62378,2759.6,2759.0,4.972134]
[1740269593584,3.62358,2759.7,2759.2,3.62418]
[1740269594011,3.62358,2759.7,2759.0,1.347724]
[1740269594214,3.62358,2759.7,2759.0,4.972144]
[1740269594215,3.62373,2759.6,2759.0,4.972144]
[1740269594382,3.62358,2759.7,2759.1,3.62425]
[1740269594588,3.62358,2759.7,2759.2,3.62422]
[1740269594785,6.0642,2759.8,2759.3,3.62407]
[1740269595102,6.0642,2759.8,2759.1,3.62428]
[1740269595307,3.62366,2759.7,2759.1,7.24856]
[1740269595620,3.62366,2759.7,2759.2,3.6242]
[1740269596022,3.62366,2759.7,2759.1,3.62428]
[1740269596219,3.62366,2759.7,2759.1,8.5599904]
[1740269596400,3.62366,2759.7,2759.4,0.74211717]
[1740269596718,6.0642,2759.8,2759.4,0.74211717]
[1740269597020,9.68765,2759.8,2759.4,0.74211717]
[1740269597735,6.0642,2759.8,2759.4,0.74211717]
[1740269598835,9.68765,2759.8,2759.4,0.74211717]
[1740269599227,6.0642,2759.8,2759.4,0.74211717]
[1740269601405,6.0642,2759.8,2759.4,1.44672989]
[1740269601636,5.24,2759.8,2759.5,7.24761]
[1740269601837,0.7508,2760.0,2759.5,3.77927]
[1740269602043,0.7508,2760.0,2759.5,7.40303]
[1740269602238,0.7508,2760.3,2759.5,0.1555]
[1740269602543,0.7508,2760.3,2759.9,3.62331]
[1740269604142,0.7508,2760.3,2759.9,4.33411307]
[1740269604329,0.7508,2760.3,2759.9,3.62322]
[1740269604525,9.61341,2760.5,2760.0,3.62317]
[1740269604732,9.61341,2760.5,2759.9,3.62322]
[1740269606249,0.7508,2760.5,2760.1,3.62294]
[1740269606546,12.23184802,2760.9,2760.2,0.268]
[1740269606547,0.7781,2760.8,2760.2,0.268]
[1740269607047,0.7781,2760.8,2760.5,3.62242]
[1740269607443,5.24,2760.9,2760.5,3.62242]
[1740269607647,5.24,2760.9,2760.6,3.62238]
[1740269607826,0.7781,2761.0,2760.6,3.62238]
[1740269608339,8.86175,2761.1,2760.7,3.62223]
[1740269608340,5.24,2761.1,2760.7,3.62223]
[1740269608643,5.24,2761.1,2760.8,3.62212]
[1740269608843,5.24,2761.1,2760.7,3.62223]
[1740269609031,5.24,2761.1,2760.5,7.40034]
[1740269609347,8.8618,2761.1,2760.5,7.40036]
[1740269609550,8.8618,2761.1,2760.6,3.62239]
[1740269610139,8.8618,2761.1,2760.5,7.40035]
[1740269610341,8.8618,2761.1,2760.6,3.62237]
[1740269610720,5.24,2761.1,2760.6,3.6224]
[1740269610921,8.86179,2761.1,2760.6,3.6224]
[1740269611849,8.86179,2761.1,2761.0,0.74085357]
[1740269613456,5.24,2761.1,2761.0,0.74085357]
[1740269614424,0.7781,2761.2,2761.0,4.36272357]
[1740269614630,6.0061,2761.4,2761.0,0.74085357]
[1740269614841,6.0061,2761.4,2761.1,3.62174]
[1740269615538,6.0061,2761.4,2761.0,4.36271357]
[1740269616084,5.24,2761.4,2761.1,3.62164]
[1740269616749,5.24,2761.4,2761.1,3.88864]
[1740269618156,5.24,2761.4,2761.3,3.62148]
[1740269618338,0.7823,2761.6,2761.3,3.62148]
[1740269618546,0.7823,2761.6,2761.4,3.62124]
[1740269619150,0.7823,2761.8,2761.4,3.62124]
[1740269620548,4.40318,2761.8,2761.2,3.62149]
[1740269620725,3.62096,2761.7,2761.2,4.1270068]
[1740269621240,3.62096,2761.7,2761.2,7.7485468]
[1740269621452,3.62096,2761.7,2761.2,4.1270068]
[1740269622146,3.62135,2761.4,2760.6,0.1555]
[1740269622452,7.24419,2760.9,2760.5,7.399]
[1740269622660,3.62209,2760.9,2760.5,7.399]
[1740269623249,3.6218,2761.1,2760.5,11.02145]
[1740269623443,3.6218,2761.1,2760.6,1.128845]
[1740269623852,3.62203,2760.9,2760.6,1.128845]
[1740269625151,3.62192,2761.0,2760.6,1.128845]
[1740269626230,3.6218,2761.1,2760.6,1.128845]
[1740269626432,3.62187,2761.0,2760.6,1.128845]
[1740269628063,3.62214,2760.8,2760.6,1.128845]
[1740269628226,0.7823,2761.3,2760.5,7.399]
[1740269628227,3.6224,2760.6,2760.5,7.399]
[1740269629161,0.7823,2760.5,2759.8,0.26825937]
[1740269629338,3.62312,2760.1,2759.8,0.26825937]
[1740269629861,3.62312,2760.1,2759.8,3.26825937]
[1740269630044,3.62312,2760.1,2759.8,0.26825937]
[1740269631086,3.62288,2760.3,2759.8,6.89169937]
[1740269631365,3.62288,2760.3,2759.8,8.01761696]
[1740269631563,7.24577,2760.3,2759.8,8.01761696]
[1740269631933,3.62292,2760.2,2759.8,8.01761696]
[1740269632155,3.62292,2760.2,2759.8,4.39417696]
[1740269633362,3.62288,2760.3,2759.8,4.39417696]
[1740269633735,3.62306,2760.1,2759.8,4.39417696]
[1740269637901,3.6232,2760.0,2759.8,4.39417696]
[1740269638206,3.62306,2760.1,2759.8,4.39417696]
[1740269639060,3.62306,2760.1,2759.8,1.39417696]
[1740269639262,3.62306,2760.1,2759.7,3.48346536]
[1740269641756,3.62345,2759.8,2759.7,3.48346536]
[1740269642066,3.62292,2760.2,2758.8,5.39]
[1740269642067,3.62418,2759.3,2759.0,0.266]
[1740269642601,7.24836,2759.3,2759.0,0.266]
[1740269642782,3.62418,2759.3,2759.0,0.266]
[1740269644207,3.62446,2759.1,2758.8,3.42397719]
[1740269644505,3.62446,2759.1,2758.8,5.62403363]
[1740269644709,3.62446,2759.1,2758.8,4.73996791]
[1740269645574,3.62428,2759.2,2758.8,4.73996791]
[1740269649317,3.62415,2759.3,2758.8,4.47149072]
[1740269649485,3.62415,2759.3,2758.8,8.09622072]
[1740269649811,4.41312,2759.5,2758.9,3.9937714]
[1740269649988,4.41312,2759.5,2759.0,3.77993]
[1740269650477,8.03706,2759.5,2759.0,3.77993]
[1740269650680,5.24,2759.6,2759.0,0.1555]
[1740269650883,5.24,2759.6,2759.3,3.62402]
[1740269651103,5.24,2759.6,2759.3,4.348849]
[1740269651581,3.62347,2759.8,2759.3,4.348849]
[1740269651808,3.62328,2760.0,2759.4,0.1555]
[1740269651992,3.62332,2759.9,2759.4,3.77938]
[1740269652584,0.7788,2760.1,2759.4,0.1555]
[1740269652885,3.62325,2760.0,2759.5,3.62377]
[1740269653085,0.7788,2760.1,2759.6,3.62371]
[1740269653286,4.40194,2760.1,2759.5,3.62376]
[1740269653503,4.40194,2760.1,2759.6,3.62364]
[1740269654013,4.40194,2760.1,2759.5,3.62376]
[1740269654220,4.40194,2760.1,2759.6,3.62371]
[1740269654717,8.02511,2760.1,2759.6,3.62371]
[1740269654926,4.40194,2760.1,2759.6,3.62371]
[1740269655123,3.6232,2760.0,2759.5,3.62384]
[1740269655622,4.40185,2760.1,2759.6,3.62363]
[1740269655917,0.7788,2760.1,2759.6,0.84194629]
[1740269656217,8.863,2760.2,2759.7,3.62351]
[1740269656410,5.24,2760.2,2759.8,3.62344]
[1740269656790,5.24,2760.2,2759.9,0.73734758]
[1740269657614,13.04762802,2760.3,2759.9,0.73734758]
[1740269657810,0.815,2760.3,2760.0,3.6231]
[1740269658001,0.815,2760.3,2759.9,4.51609758]
[1740269658197,0.815,2760.3,2760.0,3.62318]
[1740269658406,0.815,2760.3,2759.9,1.70680534]
[1740269658407,0.815,2760.5,2759.9,1.70680534]
[1740269658619,0.815,2760.9,2760.5,3.62247]
[1740269659741,0.815,2760.9,2760.5,3.62243]
[1740269659886,4.43703,2760.9,2760.5,3.62243]
[1740269660331,4.43703,2760.9,2760.4,0.4215]
[1740269660537,4.43703,2760.9,2760.4,4.04412]
[1740269662120,8.86182,2761.1,2760.4,1.188189]
[1740269662324,5.24,2761.1,2760.7,3.62216]
[1740269662542,0.815,2761.5,2761.0,3.62187]
[1740269662746,0.815,2761.5,2761.1,3.62171]
[1740269663246,0.815,2761.5,2761.1,3.07171]
[1740269663395,0.815,2761.5,2760.9,3.77743]
[1740269663599,4.43622,2761.5,2761.0,3.62179]
[1740269664123,3.62135,2761.4,2760.9,3.7775]
[1740269664338,3.62135,2761.4,2760.9,0.1555]
[1740269664629,3.6215,2761.3,2760.9,0.1555]
[1740269666127,3.6215,2761.3,2761.0,0.72481535]
[1740269668535,4.43631,2761.5,2761.0,0.72481535]
[1740269668698,3.62137,2761.4,2761.0,0.72481535]
[1740269668898,4.43631,2761.5,2761.0,0.72481535]
[1740269669131,3.62146,2761.4,2761.0,0.72481535]
[1740269669433,3.62155,2761.3,2761.0,0.72481535]
[1740269671600,7.24291,2761.4,2761.0,0.72481535]
[1740269671801,0.815,2761.5,2761.0,0.72481535]
[1740269672214,3.62136,2761.4,2761.0,0.72481535]
[1740269672815,3.62136,2761.4,2761.0,4.34666535]
[1740269673337,0.815,2761.5,2761.0,4.34661535]
[1740269673514,0.815,2761.5,2761.1,3.62165]
[1740269673721,4.43624,2761.5,2761.1,3.62165]
[1740269674103,3.62137,2761.4,2761.0,0.72481535]
[1740269676924,3.62137,2761.4,2761.0,4.34664535]
[1740269677119,3.62137,2761.4,2761.0,0.72481535]
[1740269679428,7.24283,2761.4,2761.0,0.72481535]
[1740269679637,0.815,2761.5,2761.0,0.72481535]
[1740269679829,4.43628,2761.5,2761.0,4.34667535]
[1740269681116,3.62135,2761.4,2761.0,4.34667535]
[1740269681345,3.62135,2761.4,2761.0,0.72481535]
[1740269681719,3.62135,2761.4,2761.0,4.34667535]
[1740269681943,0.815,2761.5,2761.0,4.34667535]
[1740269682143,3.62135,2761.4,2761.0,0.72481535]
[1740269684151,3.62149,2761.3,2761.0,0.72481535]
[1740269684631,3.62141,2761.4,2761.0,0.72481535]
[1740269686232,7.24285,2761.4,2761.0,0.72481535]
[1740269686553,3.62141,2761.4,2761.0,0.72481535]
[1740269687257,3.62149,2761.3,2761.0,0.72481535]
[1740269687545,3.62141,2761.4,2761.0,0.72481535]
[1740269688733,3.62148,2761.3,2761.0,0.72481535]
[1740269689546,3.62136,2761.4,2761.0,0.72481535]
[1740269689717,4.43624,2761.5,2761.0,0.72481535]
[1740269689920,3.62135,2761.4,2761.0,0.72481535]
[1740269690350,4.43624,2761.5,2761.0,0.72481535]
[1740269690649,3.62145,2761.4,2761.0,0.72481535]
[1740269691019,3.62135,2761.4,2761.0,0.72481535]
[1740269691857,3.6215,2761.3,2761.0,0.72481535]
[1740269693457,3.36978802,2761.4,2760.7,0.1555]
[1740269693666,3.62266,2760.4,2760.3,5.39]
[1740269693857,3.62226,2760.7,2760.2,7.5535]
[1740269694059,3.36978802,2760.8,2760.2,7.5535]
[1740269694230,3.62261,2760.5,2760.2,7.5535]
[1740269695028,3.62261,2760.5,2760.2,7.398]
[1740269695235,3.62279,2760.3,2759.9,0.264]
[1740269695561,3.62267,2760.4,2759.9,3.8873]
[1740269695866,3.62267,2760.4,2759.9,3.0]
[1740269696044,3.62287,2760.3,2759.9,3.264]
[1740269696250,3.62318,2760.0,2759.8,0.4195]
[1740269696434,0.8326,2760.2,2759.7,3.47172959]
[1740269696635,3.6234,2759.9,2759.7,3.73572959]
[1740269696879,3.62345,2759.8,2759.7,3.47172959]
[1740269697871,3.62318,2760.1,2759.7,3.47172959]
[1740269698070,3.62323,2760.0,2759.7,3.47172959]
[1740269699289,3.62327,2760.0,2759.7,3.47172959]
[1740269699659,3.62339,2759.9,2759.7,3.47172959]
[1740269700683,3.62345,2759.9,2759.7,3.47172959]
[1740269701364,3.62345,2759.8,2759.7,3.47172959]
[1740269703192,3.62342,2759.9,2759.7,3.47172959]
[1740269704495,3.62311,2760.1,2759.7,3.47172959]
[1740269704795,3.62318,2760.0,2759.7,3.47172959]
[1740269705390,3.62311,2760.1,2759.7,3.47172959]
[1740269705558,0.8326,2760.2,2759.7,4.33676255]
[1740269705757,8.86268,2760.4,2759.8,3.62345]
[1740269706090,3.62279,2760.3,2759.8,3.62345]
[1740269706288,3.62281,2760.3,2759.8,3.62345]
[1740269706458,8.86268,2760.4,2759.7,4.33676255]
[1740269706664,3.62287,2760.3,2759.7,7.96029255]
[1740269707463,8.86268,2760.4,2759.7,7.96029255]
[1740269708102,3.62333,2759.9,2759.7,3.47172959]
[1740269708253,3.62345,2759.8,2759.7,3.47172959]
[1740269710971,8.86345,2759.8,2759.7,3.47172959]
[1740269711367,5.24,2759.8,2759.7,3.47172959]
[1740269712214,5.24,2759.8,2759.7,7.09530959]
[1740269712400,5.24,2759.8,2759.7,8.18275755]
[1740269713169,5.24,2759.8,2759.7,8.13275755]
[1740269714286,5.24,2759.8,2759.7,11.28825755]
[1740269716315,0.7927,2760.7,2760.1,3.62295]
[1740269716512,0.7927,2760.7,2760.3,3.62272]
[1740269716820,3.6222,2760.8,2760.2,3.77841]
[1740269717019,9.63364,2760.9,2760.3,3.62273]
[1740269717526,3.62223,2760.8,2760.3,3.62271]
[1740269718189,3.62222,2760.8,2760.3,3.62271]
[1740269718885,6.0116,2760.9,2760.3,3.62271]
[1740269719082,6.0116,2760.9,2760.4,3.62265]
[1740269719288,6.0116,2760.9,2760.4,3.62266]
[1740269719485,6.0116,2760.9,2760.2,3.7783]
[1740269719708,3.62234,2760.7,2760.2,0.9484922]
[1740269720691,3.62247,2760.6,2760.2,0.9484922]
[1740269720886,3.62247,2760.6,2760.3,0.74296846]
[1740269721102,3.62247,2760.6,2760.3,1.00596846]
[1740269721337,3.62225,2760.8,2760.3,1.00596846]
[1740269721519,6.0116,2760.9,2760.3,0.74296846]
[1740269721721,3.62213,2760.8,2760.3,4.36569846]
[1740269722519,3.62213,2760.8,2760.3,7.98841846]
[1740269722708,3.62213,2760.8,2760.3,4.36568846]
[1740269722908,3.62213,2760.8,2760.3,7.98839846]
[1740269723205,3.62213,2760.8,2760.3,4.36567846]
[1740269724937,3.62229,2760.7,2760.3,0.74296846]
[1740269725340,3.62213,2760.8,2760.3,0.74296846]
[1740269725524,3.62233,2760.7,2760.3,0.74296846]
[1740269726130,3.62242,2760.6,2760.3,0.74296846]
[1740269726329,3.62246,2760.6,2760.3,0.74296846]
[1740269726526,3.62246,2760.6,2760.3,1.00496846]
[1740269726907,6.99191802,2760.8,2760.3,0.74296846]
[1740269727403,3.62261,2760.5,2760.3,0.74296846]
[1740269727606,3.62237,2760.7,2760.3,0.74296846]
[1740269728038,3.62249,2760.6,2760.3,0.74296846]
[1740269729875,7.24501,2760.6,2760.3,0.74296846]
[1740269730075,3.62249,2760.6,2760.4,0.1555]
[1740269730233,3.62249,2760.6,2760.3,0.74296846]
[1740269730234,3.62249,2760.6,2760.1,7.150632]
[1740269730434,3.62249,2760.6,2760.2,0.1555]
[1740269732147,7.24499,2760.6,2760.2,0.1555]
[1740269732477,3.62253,2760.5,2760.2,0.1555]
[1740269732697,7.24497,2760.6,2760.2,0.1555]
[1740269733494,3.62248,2760.6,2760.2,0.1555]
[1740269733803,7.245,2760.6,2760.2,0.1555]
[1740269734291,3.62248,2760.6,2760.2,0.1555]
[1740269735077,7.24497,2760.6,2760.2,0.1555]
[1740269735600,3.62248,2760.6,2760.2,0.1555]
[1740269736195,7.24495,2760.6,2760.2,0.1555]
[1740269736501,3.62247,2760.6,2760.2,0.1555]
[1740269736867,3.62247,2760.6,2760.2,3.77842]
[1740269737194,3.62247,2760.6,2760.2,4.97906262]
[1740269738200,3.62224,2760.8,2760.2,4.97906262]
[1740269738201,3.62237,2760.7,2760.2,4.97906262]
[1740269739508,3.62237,2760.7,2760.2,3.77842]
[1740269740600,3.62237,2760.7,2760.3,3.62277]
[1740269741498,3.62237,2760.7,2760.2,0.1555]
[1740269741701,9.63364,2760.9,2760.1,7.150632]
[1740269741702,5.24,2760.9,2760.6,3.7778]
[1740269741862,5.24,2760.9,2760.7,3.62225]
[1740269742698,5.24,2760.9,2760.6,3.77788]
[1740269744466,5.24,2760.9,2760.6,3.77781]
[1740269745709,5.24,2760.9,2760.7,3.62225]
[1740269746303,3.6215,2761.3,2760.9,3.62198]
[1740269746467,3.6215,2761.3,2760.7,3.62225]
[1740269746468,4.45192,2761.4,2760.8,3.62202]
[1740269746667,4.45192,2761.4,2760.9,3.62192]
[1740269747304,8.07337,2761.4,2760.9,3.62192]
[1740269747631,3.62149,2761.3,2760.9,3.62199]
[1740269747941,0.8305,2761.4,2760.9,3.62199]
[1740269747942,0.8305,2761.4,2760.9,0.261]
[1740269748115,3.62149,2761.3,2760.9,3.88299]
[1740269748313,3.62149,2761.3,2761.0,0.1555]
[1740269748519,8.86123,2761.5,2761.0,3.77727]
[1740269748840,8.86123,2761.5,2761.0,0.921526]
[1740269748841,5.24,2761.5,2761.0,0.921526]
[1740269749038,5.24,2761.5,2761.1,3.62174]
[1740269749415,5.24,2761.5,2761.1,3.62166]
[1740269749611,3.62104,2761.7,2761.2,3.62154]
[1740269749818,3.62104,2761.7,2761.2,3.77704]
[1740269750695,4.45133,2761.8,2761.3,3.62145]
[1740269750903,0.8305,2761.8,2761.3,3.62145]
[1740269751126,5.24,2761.9,2761.4,0.377695]
[1740269751437,3.62072,2761.9,2761.4,3.998965]
[1740269751643,4.19658802,2762.0,2761.4,0.377695]
[1740269751935,7.81722802,2762.0,2761.5,3.62118]
[1740269752298,0.8268,2762.0,2761.7,3.6209]
[1740269752495,3.62036,2762.2,2761.7,3.6209]
[1740269752496,3.62047,2762.1,2761.7,0.1555]
[1740269752813,3.62057,2762.0,2761.7,0.1555]
[1740269753113,3.62057,2762.0,2761.5,3.77671]
[1740269753313,3.62057,2762.0,2761.5,4.516512]
[1740269755344,3.62057,2762.0,2761.6,3.62106]
[1740269755514,3.62037,2762.2,2761.7,3.62095]
[1740269755714,3.62051,2762.1,2761.6,3.62108]
[1740269756434,3.62037,2762.2,2761.6,3.62108]
[1740269756633,3.62055,2762.1,2761.6,3.62108]
[1740269759646,3.62064,2762.0,2761.5,4.516502]
[1740269760647,3.62043,2762.1,2761.6,3.62105]
[1740269761139,3.62057,2762.0,2761.6,3.62105]
[1740269761622,3.62057,2762.0,2761.5,4.516512]
[1740269762315,3.62057,2762.0,2761.6,4.4348362]
[1740269762764,3.62043,2762.1,2761.7,0.26]
[1740269763509,3.62036,2762.2,2761.7,3.88086]
[1740269763709,8.86023,2762.3,2761.8,3.77626]
[1740269764126,3.62013,2762.4,2761.8,0.1555]
[1740269764328,3.62013,2762.4,2761.9,4.024326]
[1740269766239,5.24,2762.7,2762.2,3.77579]
[1740269766540,13.03215802,2762.8,2762.2,3.77568]
[1740269766739,3.61965,2762.7,2762.2,3.77568]
[1740269767757,3.61965,2762.7,2762.2,7.3959]
[1740269767954,3.61945,2762.9,2762.3,0.73959]
[1740269768116,3.61945,2762.9,2762.2,0.1555]
[1740269768117,3.61945,2762.9,2762.4,3.62003]
[1740269768319,0.8028,2763.0,2762.2,0.1555]
[1740269768522,6.98877802,2763.2,2762.8,0.1555]
[1740269768819,3.61947,2762.9,2762.7,0.261]
[1740269769031,3.61938,2762.9,2762.6,0.4165]
[1740269770545,3.61944,2762.9,2762.6,0.820139]
[1740269770865,3.61944,2762.9,2762.6,0.4165]
[1740269772358,3.61937,2763.0,2762.6,0.4165]
[1740269772567,7.23872,2763.0,2762.6,0.4165]
[1740269772723,7.23871,2763.0,2762.6,0.4165]
[1740269772924,3.6194,2762.9,2762.6,0.4165]
[1740269773222,3.6194,2762.9,2762.6,0.89235597]
[1740269773447,3.61935,2763.0,2762.6,0.4165]
[1740269773655,10.60793802,2763.2,2762.6,4.03621]
[1740269773827,6.98885802,2763.2,2762.6,4.03621]
[1740269774163,3.61926,2763.0,2762.6,0.4165]
[1740269775064,7.23861,2763.0,2762.6,0.4165]
[1740269775228,3.61945,2762.9,2762.6,0.89234197]
[1740269775421,3.61945,2762.9,2762.6,0.4165]
[1740269776165,7.23861,2763.0,2762.6,0.4165]
[1740269776464,7.23859,2763.0,2762.6,0.4165]
[1740269776764,3.61926,2763.0,2762.6,0.4165]
[1740269776966,7.23858,2763.0,2762.6,0.4165]
[1740269777165,3.61926,2763.0,2762.6,0.4165]
[1740269777341,3.6194,2762.9,2762.6,0.4165]
[1740269777971,3.61926,2763.0,2762.6,0.4165]
[1740269778467,3.61938,2762.9,2762.6,0.4165]
[1740269778770,3.61926,2763.0,2762.6,0.4165]
[1740269780646,3.61926,2763.0,2762.6,4.03626]
[1740269780846,3.61926,2763.0,2762.6,4.87408297]
[1740269781403,3.61926,2763.0,2762.6,1.25432297]
[1740269781871,3.61921,2763.1,2762.6,4.87402297]
[1740269782368,6.98887802,2763.2,2762.6,4.87402297]
[1740269782533,6.98887802,2763.2,2762.7,3.61956]
[1740269782733,6.0428,2763.3,2763.0,0.1555]
[1740269782734,1.63729965,2763.3,2763.0,0.1555]
[1740269782971,5.25592965,2763.5,2763.0,3.77467]
[1740269783175,1.63729965,2763.5,2763.0,3.77467]
[1740269783335,1.63729965,2763.5,2763.1,3.61908]
[1740269783536,1.63729965,2763.5,2763.2,0.739382]
[1740269784762,3.61861,2763.5,2763.2,0.739382]
[1740269785058,3.61861,2763.5,2763.0,3.77463]
[1740269785799,3.61854,2763.6,2763.0,3.77463]
[1740269786095,3.61866,2763.5,2763.0,3.77463]
[1740269786699,3.61854,2763.6,2763.1,3.61912]
[1740269787268,7.23711,2763.6,2763.1,3.61912]
[1740269787469,7.23711,2763.6,2763.2,0.739375]
[1740269787670,3.6186,2763.5,2763.2,0.739375]
[1740269788403,3.61857,2763.6,2763.2,0.739375]
[1740269788793,3.61846,2763.7,2763.2,0.739375]
[1740269788993,3.61846,2763.6,2763.2,0.739375]
[1740269790185,3.61862,2763.5,2763.2,0.739375]
[1740269794804,3.61873,2763.4,2763.2,0.739375]
[1740269795213,3.61873,2763.4,2763.1,0.72115296]
[1740269795380,3.61862,2763.5,2763.1,0.72115296]
[1740269796099,3.61873,2763.4,2763.1,0.72115296]
[1740269798014,3.61854,2763.6,2763.1,4.34020296]
[1740269798217,3.61854,2763.6,2763.1,4.34024296]
[1740269798523,3.61854,2763.6,2763.2,3.61894]
[1740269799414,3.61854,2763.6,2763.2,3.61896]
[1740269799614,5.245,2763.9,2763.3,0.1555]
[1740269799926,8.86317,2763.9,2763.4,0.259]
[1740269800105,3.61839,2763.7,2763.4,0.259]
[1740269800314,3.61839,2763.7,2763.4,0.662349]
[1740269801211,3.61854,2763.6,2763.4,0.662349]
[1740269801408,0.005,2763.9,2763.5,3.61859]
[1740269801990,0.005,2763.9,2763.4,0.259]
[1740269802185,0.005,2763.9,2763.4,3.87763]
[1740269802600,0.005,2763.9,2763.5,3.61853]
[1740269802921,0.005,2763.9,2763.6,0.749616]
[1740269805236,0.005,2763.9,2763.6,4.368056]
[1740269807840,0.005,2763.9,2763.6,4.63556758]
[1740269808024,0.005,2763.9,2763.7,3.61833]
[1740269808534,0.005,2763.9,2763.8,3.6182]
[1740269808740,0.005,2763.9,2763.8,0.82536576]
[1740269808916,0.005,2763.9,2763.7,3.77383]
[1740269809117,0.005,2763.9,2763.7,0.1555]
[1740269810249,0.005,2763.9,2763.8,3.6182]
[1740269812442,0.005,2763.9,2763.8,3.7737]
[1740269813435,0.005,2763.9,2763.8,0.1555]
[1740269813612,0.005,2763.9,2763.8,0.63195875]
[1740269814142,0.005,2763.9,2763.8,4.25015875]
[1740269814322,0.005,2763.9,2763.8,0.63195875]
[1740269815250,0.005,2763.9,2763.8,4.25015875]
[1740269816253,0.005,2763.9,2763.8,0.63195875]
[1740269817859,0.005,2763.9,2763.8,0.47645875]
[1740269818022,0.005,2763.9,2763.7,0.7233159]
[1740269818023,0.005,2763.9,2763.7,0.258]
[1740269823280,0.005,2763.9,2763.8,3.6182]
[1740269823483,0.005,2763.9,2763.7,0.258]
[1740269823484,0.005,2763.9,2763.7,3.87626]
[1740269823654,0.005,2763.9,2763.7,0.258]
[1740269823994,0.7961,2763.8,2763.6,0.73490356]
[1740269824155,3.61859,2763.5,2763.4,7.65]
[1740269824482,5.25490584,2763.5,2763.4,7.65]
[1740269825175,5.25490584,2763.5,2763.4,7.391]
[1740269825376,1.63631584,2763.5,2763.4,7.391]
[1740269826688,3.61848,2763.6,2763.4,7.391]
[1740269826850,3.61848,2763.6,2763.3,0.259]
[1740269831509,7.23706,2763.6,2763.3,0.259]
[1740269831662,3.61848,2763.6,2763.3,0.259]
[1740269836328,6.99452863,2763.5,2763.3,0.259]
[1740269836531,0.7667,2763.4,2763.3,0.259]
[1740269836672,4.38511,2763.7,2763.3,0.259]
[1740269837166,8.00355,2763.7,2763.3,0.259]
[1740269838312,3.61847,2763.6,2763.3,0.259]
[1740269839911,4.38511,2763.7,2763.3,0.259]
[1740269840114,0.005,2763.9,2763.4,0.1555]
[1740269840115,0.7717,2763.9,2763.4,0.1555]
[1740269840413,3.61823,2763.8,2763.4,0.1555]
[1740269840579,0.7717,2763.9,2763.4,0.920705]
[1740269840780,3.61821,2763.8,2763.4,0.920705]
[1740269840994,3.61821,2763.8,2763.4,4.539425]
[1740269841196,3.61821,2763.8,2763.4,0.920705]
[1740269841421,3.61821,2763.8,2763.4,0.1555]
[1740269843060,0.7717,2763.9,2763.5,3.61859]
[1740269843212,0.005,2763.9,2763.6,3.61845]
[1740269843413,0.005,2763.9,2763.8,3.6182]
[1740269843646,0.005,2763.9,2763.5,3.77403]
[1740269843852,0.005,2763.9,2763.6,0.739267]
[1740269844359,0.005,2763.9,2763.7,3.61832]
[1740269844513,0.005,2763.9,2763.6,0.739267]
[1740269844716,0.005,2763.9,2763.6,4.357647]
[1740269845233,0.005,2763.9,2763.6,0.739267]
[1740269845560,3.61834,2763.7,2763.3,0.4145]
[1740269846061,3.61834,2763.7,2763.3,4.03334]
[1740269846531,3.61834,2763.7,2763.5,0.72441184]
[1740269846949,3.6231,2763.9,2763.5,0.72441184]
[1740269847762,3.61826,2763.8,2763.5,0.72441184]
[1740269848260,0.005,2763.9,2763.6,3.61843]
[1740269848558,0.005,2763.9,2763.6,3.61846]
[1740269849296,0.005,2763.9,2763.7,3.61826]
[1740269850095,0.005,2763.9,2763.6,0.1555]
[1740269851596,3.62308,2763.9,2763.6,0.1555]
[1740269851798,3.62308,2763.9,2763.6,1.0147977]
[1740269852093,3.62308,2763.9,2763.6,0.8592977]
[1740269852290,0.005,2763.9,2763.6,0.8592977]
[1740269852498,0.005,2763.9,2763.6,4.4777577]
[1740269853019,0.005,2763.9,2763.6,0.8592977]
[1740269853717,0.005,2763.9,2763.7,0.62176767]
[1740269856912,0.005,2763.9,2763.7,4.24006767]
[1740269857212,0.005,2763.9,2763.7,0.62176767]
[1740269857576,0.005,2763.9,2763.7,4.24002767]
[1740269859225,0.005,2763.9,2763.8,3.7737]
[1740269859394,0.005,2763.9,2763.8,4.57507977]
[1740269861052,0.005,2763.9,2763.8,5.12507977]
[1740269870020,0.005,2763.9,2763.8,8.12507977]
[1740269874540,0.005,2763.9,2763.8,13.51507977]
[1740269877341,0.005,2763.9,2763.8,13.77207977]
[1740269878042,0.005,2763.9,2763.8,13.51507977]
[1740269878242,0.005,2763.9,2763.8,13.77207977]
[1740269880385,0.005,2763.9,2763.8,13.35957977]
[1740269880567,0.005,2763.9,2763.8,13.06657977]
[1740269881173,0.005,2763.9,2763.8,13.61657977]